bitfinex-derivatives/quotes_BNBF0:USTF0_20250401
["timestamp","ask_amount","ask_price","bid_price","bid_amount"]
[1743472453216,0.2875534,606.03,604.66,0.33076439]
[1743472453517,0.30355408,606.02,604.66,0.33076439]
[1743472455814,0.30355408,606.01,604.66,0.33076439]
[1743472456119,0.30355408,606.0,604.66,0.33076439]
[1743472457221,0.33003844,605.99,604.66,0.33076439]
[1743472457421,0.30355408,605.98,604.66,0.33076439]
[1743472459324,0.28758429,605.97,604.66,0.33076439]
[1743472459519,0.30355408,605.96,604.66,0.33076439]
[1743472459722,0.30358564,605.95,604.66,0.33076439]
[1743472459919,0.30358564,605.96,604.66,0.33076439]
[1743472460121,0.30358564,605.95,604.66,0.33076439]
[1743472460424,0.30358564,605.94,604.66,0.33076439]
[1743472460623,0.30358564,605.96,604.66,0.33076439]
[1743472460923,0.30358564,605.95,604.66,0.33076439]
[1743472461134,0.30358564,605.96,604.66,0.33076439]
[1743472461332,0.30358564,605.95,604.66,0.33076439]
[1743472461533,0.30358564,605.96,604.66,0.33076439]
[1743472461734,0.30358564,605.95,604.66,0.33076439]
[1743472461934,0.59116043,605.94,604.66,0.33076439]
[1743472462134,0.30358564,605.93,604.66,0.33076439]
[1743472462734,0.28757479,605.94,604.66,0.33076439]
[1743472462935,0.30358542,605.93,604.66,0.33076439]
[1743472465034,0.30358542,605.98,604.66,0.33076439]
[1743472465233,0.30358542,605.97,604.66,0.33076439]
[1743472465433,0.2875736,605.92,604.66,0.33076439]
[1743472465636,0.30358542,605.91,604.66,0.33076439]
[1743472467933,0.59118991,605.9,604.66,0.33076439]
[1743472468139,0.30358542,605.89,604.66,0.33076439]
[1743472469835,0.945,605.88,604.66,0.33076439]
[1743472470037,0.30358542,605.87,604.66,0.33076439]
[1743472471032,0.28760568,605.86,604.66,0.33076439]
[1743472471235,0.30358542,605.85,604.66,0.33076439]
[1743472474039,0.28760568,605.84,604.66,0.33076439]
[1743472474336,0.30358542,605.83,604.66,0.33076439]
[1743472474835,0.28760568,605.84,604.66,0.33076439]
[1743472476743,0.945,605.88,604.66,0.33076439]
[1743472476943,0.28756053,605.83,604.66,0.33076439]
[1743472479844,0.945,605.88,604.66,0.33076439]
[1743472480042,0.28754152,605.82,604.66,0.33076439]
[1743472482647,0.945,605.88,604.66,0.33076439]
[1743472483148,0.28754746,605.81,604.66,0.33076439]
[1743472485747,0.945,605.88,604.66,0.33076439]
[1743472486345,0.2875439,605.87,604.66,0.33076439]
[1743472488649,0.945,605.88,604.66,0.33076439]
[1743472489050,0.28753914,605.86,604.66,0.33076439]
[1743472491655,0.945,605.88,604.66,0.33076439]
[1743472492056,0.28752251,605.85,604.66,0.33076439]
[1743472494758,0.945,605.88,604.66,0.33076439]
[1743472494951,0.28752014,605.84,604.66,0.33076439]
[1743472497759,0.945,605.88,604.66,0.33076439]
[1743472497954,0.28752014,605.83,604.66,0.33076439]
[1743472500761,0.945,605.88,604.66,0.33076439]
[1743472500963,0.28750945,605.82,604.66,0.33076439]
[1743472503666,0.945,605.88,604.66,0.33076439]
[1743472504059,0.28751895,605.81,604.66,0.33076439]
[1743472512673,0.945,605.88,604.66,0.33076439]
[1743472513274,0.28749401,605.87,604.66,0.33076439]
[1743472515671,0.945,605.88,604.66,0.33076439]
[1743472515973,0.28746551,605.86,604.66,0.33076439]
[1743472518673,0.945,605.88,604.66,0.33076439]
[1743472519071,0.28745958,605.85,604.66,0.33076439]
[1743472521679,0.945,605.88,604.66,0.33076439]
[1743472521984,0.28746314,605.84,604.66,0.33076439]
[1743472524787,2.50726975,606.54,604.66,0.33076439]
[1743472524985,0.28739311,605.83,604.66,0.33076439]
[1743472525386,0.32975004,606.52,604.66,0.33076439]
[1743472525685,0.28739548,605.82,604.66,0.33076439]
[1743472525881,0.32975004,606.52,604.66,0.33076439]
[1743472526080,0.30343781,606.51,604.66,0.33076439]
[1743472526386,0.28739667,605.81,604.66,0.33076439]
[1743472526587,2.50726975,606.46,604.66,0.33076439]
[1743472526787,0.28740141,605.8,604.66,0.33076439]
[1743472527189,1.63978811,606.45,604.66,0.33076439]
[1743472527388,0.63321951,606.44,604.66,0.33076439]
[1743472527589,0.28739904,605.79,604.66,0.33076439]
[1743472527791,0.32979898,606.43,604.66,0.33076439]
[1743472527991,0.28740141,605.78,604.66,0.33076439]
[1743472528391,0.32979898,606.43,604.66,0.33076439]
[1743472528588,0.28740141,605.77,604.66,0.33076439]
[1743472528991,0.32979898,606.43,604.66,0.33076439]
[1743472529191,0.28740141,605.76,604.66,0.33076439]
[1743472529590,0.32979898,606.43,604.66,0.33076439]
[1743472529888,0.2874026,605.75,604.66,0.33076439]
[1743472530086,0.32979898,606.43,604.66,0.33076439]
[1743472530392,0.28740379,605.74,604.66,0.33076439]
[1743472530893,0.32979898,606.43,604.66,0.33076439]
[1743472531191,0.28740141,605.73,604.66,0.33076439]
[1743472531392,0.32979898,606.43,604.66,0.33076439]
[1743472531589,0.28740379,605.72,604.66,0.33076439]
[1743472531988,2.50726975,606.37,604.66,0.33076439]
[1743472532189,0.28740379,605.71,604.66,0.33076439]
[1743472532592,0.32983706,606.36,604.66,0.33076439]
[1743472532893,0.28739904,605.7,604.66,0.33076439]
[1743472533094,0.32983706,606.36,604.66,0.33076439]
[1743472533290,0.30342892,606.35,604.66,0.33076439]
[1743472533490,0.28740023,605.69,604.66,0.33076439]
[1743472533686,0.3298425,606.35,604.66,0.33076439]
[1743472533889,0.30342892,606.34,604.66,0.33076439]
[1743472534087,0.28739429,605.68,604.66,0.33076439]
[1743472534290,0.3298425,606.35,604.66,0.33076439]
[1743472534491,0.30342865,606.34,604.66,0.33076439]
[1743472534794,0.28739429,605.67,604.66,0.33076439]
[1743472534993,0.3298425,606.35,604.66,0.33076439]
[1743472535193,0.28739785,605.66,604.66,0.33076439]
[1743472535589,0.3298425,606.35,604.66,0.33076439]
[1743472535789,0.28739667,605.65,604.66,0.33076439]
[1743472536194,0.3298425,606.35,604.66,0.33076439]
[1743472536397,0.28739667,605.64,604.66,0.33076439]
[1743472536796,0.3298425,606.35,604.66,0.33076439]
[1743472537008,0.28739667,605.63,604.66,0.33076439]
[1743472537503,0.3298425,606.35,604.66,0.33076439]
[1743472537803,0.28739667,605.62,604.66,0.33076439]
[1743472537998,0.3298425,606.35,604.66,0.33076439]
[1743472538199,0.28739785,605.61,604.66,0.33076439]
[1743472538599,0.3298425,606.35,604.66,0.33076439]
[1743472538801,0.28739667,605.6,604.66,0.33076439]
[1743472539202,2.50726975,606.33,604.66,0.33076439]
[1743472539396,0.28739667,605.59,604.66,0.33076439]
[1743472539798,2.50726975,606.33,604.66,0.33076439]
[1743472539998,0.28738361,605.58,604.66,0.33076439]
[1743472540402,2.50726975,606.33,604.66,0.33076439]
[1743472540602,0.28738361,605.57,604.66,0.33076439]
[1743472540901,2.50726975,606.33,604.66,0.33076439]
[1743472541098,0.30342681,606.32,604.66,0.33076439]
[1743472541295,0.2873848,605.57,604.66,0.33076439]
[1743472541499,2.50726975,606.28,604.66,0.33076439]
[1743472541696,0.30342681,606.27,604.66,0.33076439]
[1743472541900,0.28739429,605.57,604.66,0.33076439]
[1743472542300,2.50726975,606.31,604.66,0.33076439]
[1743472542503,0.28739548,605.57,604.66,0.33076439]
[1743472542699,2.50726975,606.31,604.66,0.33076439]
[1743472542906,0.30342591,606.3,604.66,0.33076439]
[1743472543204,0.28739429,605.57,604.66,0.33076439]
[1743472543404,2.50726975,606.31,604.66,0.33076439]
[1743472543599,0.28739429,605.57,604.66,0.33076439]
[1743472544000,2.50726975,606.27,604.66,0.33076439]
[1743472544304,0.28739548,605.57,604.66,0.33076439]
[1743472544503,2.50726975,606.27,604.66,0.33076439]
[1743472544704,0.30342763,606.26,604.66,0.33076439]
[1743472544905,0.28739548,605.57,604.66,0.33076439]
[1743472545099,0.3298425,606.35,604.66,0.33076439]
[1743472545303,0.30342681,606.34,604.66,0.33076439]
[1743472545502,0.28739548,605.57,604.66,0.33076439]
[1743472545706,0.3298425,606.35,604.66,0.33076439]
[1743472545908,0.30342707,606.34,604.66,0.33076439]
[1743472546105,0.28740379,605.57,604.66,0.33076439]
[1743472546300,0.3298425,606.35,604.66,0.33076439]
[1743472546603,0.30342681,606.34,604.66,0.33076439]
[1743472546804,0.28740379,605.57,604.66,0.33076439]
[1743472547103,0.3298425,606.35,604.66,0.33076439]
[1743472547304,0.2874026,605.57,604.66,0.33076439]
[1743472547503,0.3298425,606.35,604.66,0.33076439]
[1743472547705,0.30342794,606.34,604.66,0.33076439]
[1743472547906,0.2874026,605.57,604.66,0.33076439]
[1743472548110,0.3298425,606.35,604.66,0.33076439]
[1743472548310,0.3034282,606.34,604.66,0.33076439]
[1743472548511,0.28739429,605.57,604.66,0.33076439]
[1743472548706,0.3298425,606.35,604.66,0.33076439]
[1743472548909,0.30342927,606.34,604.66,0.33076439]
[1743472549105,0.28739429,605.57,604.66,0.33076439]
[1743472549309,0.3298425,606.35,604.66,0.33076439]
[1743472549510,0.30342927,606.34,604.66,0.33076439]
[1743472549706,0.28739429,605.57,604.66,0.33076439]
[1743472549913,0.3298425,606.35,604.66,0.33076439]
[1743472550106,0.303429,606.34,604.66,0.33076439]
[1743472550305,0.28739073,605.57,604.66,0.33076439]
[1743472550510,0.3298425,606.35,604.66,0.33076439]
[1743472550706,0.30342715,606.34,604.66,0.33076439]
[1743472550906,0.28739073,605.57,604.66,0.33076439]
[1743472551108,0.3298425,606.35,604.66,0.33076439]
[1743472551307,0.30342927,606.34,604.66,0.33076439]
[1743472551507,0.28739073,605.57,604.66,0.33076439]
[1743472551710,0.3298425,606.35,604.66,0.33076439]
[1743472551913,0.303429,606.34,604.66,0.33076439]
[1743472552107,0.28739073,605.57,604.66,0.33076439]
[1743472552312,0.3298425,606.35,604.66,0.33076439]
[1743472552509,0.30342874,606.34,604.66,0.33076439]
[1743472552816,0.28739073,605.57,604.66,0.33076439]
[1743472553010,0.3298425,606.35,604.66,0.33076439]
[1743472553213,0.28738717,605.57,604.66,0.33076439]
[1743472553610,0.3298425,606.35,604.66,0.33076439]
[1743472553917,0.28738598,605.57,604.66,0.33076439]
[1743472554118,0.3298425,606.35,604.66,0.33076439]
[1743472554314,0.3034282,606.34,604.66,0.33076439]
[1743472554510,0.28738717,605.57,604.66,0.33076439]
[1743472554916,0.3298425,606.35,604.66,0.33076439]
[1743472555115,0.28738717,605.57,604.66,0.33076439]
[1743472555512,0.3298425,606.35,604.66,0.33076439]
[1743472555713,0.28738598,605.57,604.66,0.33076439]
[1743472556114,2.50726975,606.24,604.66,0.33076439]
[1743472556416,0.28738005,605.57,604.66,0.33076439]
[1743472556615,2.50726975,606.24,604.66,0.33076439]
[1743472556921,0.28738124,605.57,604.66,0.33076439]
[1743472557415,0.28738124,605.57,604.66,2.84549812]
[1743472558620,0.28738124,605.57,604.67,2.51473373]
[1743472558814,0.28738124,605.57,604.69,0.33074798]
[1743472560815,2.50726975,606.25,604.69,0.33074798]
[1743472561021,0.28737768,605.57,604.69,0.33074798]
[1743472561321,2.50726975,606.25,604.69,0.33074798]
[1743472561620,0.28737649,605.57,604.69,0.33074798]
[1743472561824,2.50726975,606.25,604.69,0.33074798]
[1743472562022,0.30342472,606.24,604.69,0.33074798]
[1743472562215,0.30342472,606.23,604.69,0.33074798]
[1743472562420,0.30342472,606.22,604.69,0.33074798]
[1743472562617,0.30342472,606.21,604.69,0.33074798]
[1743472562821,0.30342472,606.24,604.69,0.33074798]
[1743472563018,0.30342472,606.23,604.69,0.33074798]
[1743472563217,0.30342472,606.22,604.69,0.33074798]
[1743472563524,1.59142472,606.21,604.69,0.33074798]
[1743472563723,0.30342472,606.2,604.69,0.33074798]
[1743472569427,1.288,606.21,604.69,0.33074798]
[1743472569630,0.30342424,606.2,604.69,0.33074798]
[1743472571932,0.30339099,606.19,604.69,0.33074798]
[1743472572130,0.30339099,606.2,604.69,0.33074798]
[1743472572326,0.30339099,606.19,604.69,0.33074798]
[1743472572526,0.30339099,606.18,604.69,0.33074798]
[1743472572725,0.30339099,606.17,604.69,0.33074798]
[1743472572926,0.30339099,606.2,604.69,0.33074798]
[1743472573131,0.30339099,606.19,604.69,0.33074798]
[1743472573332,0.30339099,606.2,604.69,0.33074798]
[1743472573528,0.30339099,606.19,604.69,0.33074798]
[1743472573724,0.30339099,606.2,604.69,0.33074798]
[1743472573926,0.30339099,606.19,604.69,0.33074798]
[1743472574127,0.30339099,606.18,604.69,0.33074798]
[1743472574432,0.30339099,606.17,604.69,0.33074798]
[1743472574633,0.30339099,606.16,604.69,0.33074798]
[1743472574830,0.30339099,606.15,604.69,0.33074798]
[1743472575128,0.30343233,606.14,604.69,0.33074798]
[1743472575335,0.30343233,606.13,604.69,0.33074798]
[1743472575535,0.30343233,606.2,604.69,0.33074798]
[1743472575735,0.30343233,606.19,604.69,0.33074798]
[1743472575936,0.30343233,606.18,604.69,0.33074798]
[1743472576135,0.30343233,606.17,604.69,0.33074798]
[1743472576336,0.30343233,606.2,604.69,0.33074798]
[1743472578336,0.30343698,606.19,604.69,0.33074798]
[1743472578541,0.30343698,606.2,604.69,0.33074798]
[1743472578840,0.30343698,606.19,604.69,0.33074798]
[1743472579041,0.30343698,606.2,604.69,0.33074798]
[1743472579241,0.30343698,606.19,604.69,0.33074798]
[1743472579441,0.30343698,606.18,604.69,0.33074798]
[1743472579741,0.30343698,606.17,604.69,0.33074798]
[1743472579944,0.30343698,606.2,604.69,0.33074798]
[1743472580143,0.30343698,606.19,604.69,0.33074798]
[1743472580444,0.30343698,606.18,604.69,0.33074798]
[1743472580644,0.30343698,606.2,604.69,0.33074798]
[1743472580841,0.30343698,606.19,604.69,0.33074798]
[1743472581041,0.30343698,606.2,604.69,0.33074798]
[1743472581244,0.28740972,606.18,604.69,0.33074798]
[1743472581444,0.30343698,606.17,604.69,0.33074798]
[1743472583149,0.30348043,606.16,604.69,0.33074798]
[1743472583346,0.30348043,606.17,604.69,0.33074798]
[1743472583541,0.30348043,606.16,604.69,0.33074798]
[1743472583740,0.30348043,606.17,604.69,0.33074798]
[1743472583948,0.30348043,606.16,604.69,0.33074798]
[1743472584247,0.30348043,606.15,604.69,0.33074798]
[1743472584446,0.30348043,606.17,604.69,0.33074798]
[1743472584647,0.30346824,606.16,604.69,0.33074798]
[1743472584946,0.30346824,606.15,604.69,0.33074798]
[1743472586150,0.28743465,606.16,604.69,0.33074798]
[1743472586450,0.3034724,606.15,604.69,0.33074798]
[1743472587750,1.288,606.21,604.69,0.33074798]
[1743472587952,0.30347012,606.2,604.69,0.33074798]
[1743472588150,0.28743702,606.14,604.69,0.33074798]
[1743472590856,1.288,606.21,604.69,0.33074798]
[1743472591055,0.30346795,606.2,604.69,0.33074798]
[1743472591249,0.28743108,606.13,604.69,0.33074798]
[1743472592054,0.30346776,606.12,604.69,0.33074798]
[1743472594058,0.28744652,606.11,604.69,0.33074798]
[1743472594253,0.30346802,606.1,604.69,0.33074798]
[1743472595758,0.30346758,606.09,604.69,0.33074798]
[1743472595963,0.30346758,606.1,604.69,0.33074798]
[1743472596258,0.30346758,606.09,604.69,0.33074798]
[1743472596453,0.30346758,606.1,604.69,0.33074798]
[1743472596653,0.30346758,606.09,604.69,0.33074798]
[1743472596859,0.30346758,606.1,604.69,0.33074798]
[1743472597062,0.59092478,606.09,604.69,0.33074798]
[1743472597260,0.30346758,606.08,604.69,0.33074798]
[1743472597963,0.2874572,606.09,604.69,0.33074798]
[1743472602868,1.288,606.21,604.69,0.33074798]
[1743472603065,0.28746907,606.08,604.69,0.33074798]
[1743472603466,1.288,606.21,604.69,0.33074798]
[1743472603663,0.28747026,606.07,604.69,0.33074798]
[1743472604069,1.288,606.21,604.69,0.33074798]
[1743472604364,0.28746907,606.06,604.69,0.33074798]
[1743472604569,1.288,606.21,604.69,0.33074798]
[1743472604770,0.30345978,606.2,604.69,0.33074798]
[1743472605068,0.28746789,606.05,604.69,0.33074798]
[1743472605268,1.288,606.21,604.69,0.33074798]
[1743472605467,0.2874667,606.19,604.69,0.33074798]
[1743472605763,0.30346011,606.18,604.69,0.33074798]
[1743472610667,0.2874667,606.19,604.69,0.33074798]
[1743472611676,1.288,606.21,604.69,0.33074798]
[1743472611976,0.28740616,606.18,604.69,0.33074798]
[1743472614780,1.288,606.21,604.69,0.33074798]
[1743472614982,0.30340919,606.2,604.69,0.33074798]
[1743472615176,0.28740972,606.17,604.69,0.33074798]
[1743472617779,1.288,606.21,604.69,0.33074798]
[1743472617976,0.28740735,606.16,604.69,0.33074798]
[1743472619083,0.3033926,606.15,604.69,0.33074798]
[1743472619479,0.28740735,606.16,604.69,0.33074798]
[1743472619678,0.30339204,606.15,604.69,0.33074798]
[1743472620080,0.28740735,606.16,604.69,0.33074798]
[1743472623781,0.3298425,606.35,604.69,0.33074798]
[1743472623985,0.30340922,606.34,604.69,0.33074798]
[1743472624290,0.59078334,606.34,604.69,0.33074798]
[1743472624482,0.30340922,606.33,604.69,0.33074798]
[1743472626484,1.43240922,606.33,604.69,0.33074798]
[1743472626686,0.30340922,606.32,604.69,0.33074798]
[1743472627186,0.59081894,606.32,604.69,0.33074798]
[1743472627380,0.30340922,606.31,604.69,0.33074798]
[1743472630087,0.28740972,606.3,604.69,0.33074798]
[1743472630381,0.30340922,606.29,604.69,0.33074798]
[1743472631683,0.28740972,606.3,604.69,0.33074798]
[1743472631884,0.30340569,606.29,604.69,0.33074798]
[1743472633289,0.28741091,606.28,604.69,0.33074798]
[1743472633490,0.30341039,606.27,604.69,0.33074798]
[1743472634893,0.28741091,606.28,604.69,0.33074798]
[1743472635093,0.30341585,606.27,604.69,0.33074798]
[1743472635994,0.30341585,606.26,604.69,0.33074798]
[1743472636190,0.2874204,606.26,604.69,0.33074798]
[1743472636390,0.30341585,606.25,604.69,0.33074798]
[1743472639197,0.59084812,606.24,604.69,0.33074798]
[1743472639394,0.30341585,606.23,604.69,0.33074798]
[1743472639799,0.30342263,606.22,604.69,0.33074798]
[1743472640095,0.28743227,606.24,604.69,0.33074798]
[1743472640295,0.943,606.21,604.69,0.33074798]
[1743472640694,0.3034229,606.2,604.69,0.33074798]
[1743472642396,0.28743465,606.19,604.69,0.33074798]
[1743472642593,0.3034229,606.18,604.69,0.33074798]
[1743472644497,0.28743465,606.19,604.69,0.33074798]
[1743472644997,0.30341813,606.18,604.69,0.33074798]
[1743472648098,0.28742515,606.17,604.69,0.33074798]
[1743472650895,0.943,606.21,604.69,0.33074798]
[1743472651101,0.28744177,606.16,604.69,0.33074798]
[1743472656800,0.943,606.21,604.69,0.33074798]
[1743472657203,0.30343671,606.2,604.69,0.33074798]
[1743472657402,0.59087373,606.2,604.69,0.33074798]
[1743472657605,0.30343671,606.19,604.69,0.33074798]
[1743472660001,0.30343671,606.2,604.69,0.33074798]
[1743472660200,0.28743939,606.18,604.69,0.33074798]
[1743472660401,0.30344491,606.17,604.69,0.33074798]
[1743472661802,0.28743939,606.18,604.69,0.33074798]
[1743472662001,0.30344512,606.17,604.69,0.33074798]
[1743472662601,0.28743939,606.18,604.69,0.33074798]
[1743472662800,0.30344512,606.17,604.69,0.33074798]
[1743472663004,0.30344512,606.16,604.69,0.33074798]
[1743472663304,0.28745008,606.17,604.69,0.33074798]
[1743472663500,0.30344538,606.16,604.69,0.33074798]
[1743472666106,0.28745483,606.15,604.69,0.33074798]
[1743472668008,0.30344708,606.14,604.69,0.33074798]
[1743472669108,1.6014572,606.13,604.69,0.33074798]
[1743472669310,0.30344708,606.12,604.69,0.33074798]
[1743472669706,1.6014572,606.13,604.69,0.33074798]
[1743472669904,0.30344767,606.12,604.69,0.33074798]
[1743472671306,1.6014572,606.13,604.69,0.33074798]
[1743472671506,0.30344561,606.12,604.69,0.33074798]
[1743472672313,0.2874299,606.11,604.69,0.33074798]
[1743472672510,0.30344561,606.1,604.69,0.33074798]
[1743472674413,0.2874299,606.11,604.69,0.33074798]
[1743472674912,1.314,606.13,604.69,0.33074798]
[1743472675316,0.28744652,606.1,604.69,0.33074798]
[1743472677818,1.314,606.13,604.69,0.33074798]
[1743472678320,0.28747026,606.09,604.69,0.33074798]
[1743472680822,1.314,606.13,604.69,0.33074798]
[1743472681323,0.28747145,606.08,604.69,0.33074798]
[1743472683823,1.314,606.13,604.69,0.33074798]
[1743472684220,0.28747145,606.07,604.69,0.33074798]
[1743472687023,0.3298425,606.35,604.69,0.33074798]
[1743472687229,0.28744177,606.06,604.69,0.33074798]
[1743472687527,0.3298425,606.35,604.69,0.33074798]
[1743472687827,0.2874299,606.05,604.69,0.33074798]
[1743472688029,0.3298425,606.35,604.69,0.33074798]
[1743472688220,0.3034251,606.34,604.69,0.33074798]
[1743472688424,0.2874299,606.04,604.69,0.33074798]
[1743472688726,0.861,606.33,604.69,0.33074798]
[1743472688929,0.2874299,606.03,604.69,0.33074798]
[1743472689323,0.861,606.33,604.69,0.33074798]
[1743472689531,0.28743108,606.02,604.69,0.33074798]
[1743472689927,0.861,606.33,604.69,0.33074798]
[1743472690125,0.28743108,606.01,604.69,0.33074798]
[1743472690427,0.861,606.33,604.69,0.33074798]
[1743472690632,0.30342562,606.32,604.69,0.33074798]
[1743472690830,0.28743227,606.0,604.69,0.33074798]
[1743472691031,0.861,606.33,604.69,0.33074798]
[1743472691231,0.30342562,606.32,604.69,0.33074798]
[1743472691532,0.28743108,605.99,604.69,0.33074798]
[1743472691726,0.861,606.33,604.69,0.33074798]
[1743472691926,0.28742871,605.98,604.69,0.33074798]
[1743472692331,0.861,606.33,604.69,0.33074798]
[1743472692532,0.28742634,605.97,604.69,0.33074798]
[1743472693032,0.861,606.33,604.69,0.33074798]
[1743472693233,0.30342562,606.32,604.69,0.33074798]
[1743472693429,0.28742159,605.96,604.69,0.33074798]
[1743472693633,0.861,606.33,604.69,0.33074798]
[1743472693835,0.30342562,606.32,604.69,0.33074798]
[1743472694029,0.28742278,605.95,604.69,0.33074798]
[1743472694229,0.861,606.33,604.69,0.33074798]
[1743472694428,0.30342281,606.32,604.69,0.33074798]
[1743472694628,0.28742278,605.94,604.69,0.33074798]
[1743472694828,0.861,606.33,604.69,0.33074798]
[1743472695229,0.28742278,605.93,604.69,0.33074798]
[1743472695529,0.861,606.33,604.69,0.33074798]
[1743472695733,0.30342282,606.32,604.69,0.33074798]
[1743472695933,0.28739311,605.92,604.69,0.33074798]
[1743472696133,0.861,606.33,604.69,0.33074798]
[1743472696335,0.30342282,606.32,604.69,0.33074798]
[1743472696536,0.28739311,605.91,604.69,0.33074798]
[1743472696736,0.861,606.33,604.69,0.33074798]
[1743472696937,0.30342281,606.32,604.69,0.33074798]
[1743472697239,0.28739192,605.9,604.69,0.33074798]
[1743472697435,0.861,606.33,604.69,0.33074798]
[1743472697634,0.28739192,605.89,604.69,0.33074798]
[1743472698035,0.861,606.33,604.69,0.33074798]
[1743472698235,0.28739073,605.88,604.69,0.33074798]
[1743472698738,2.50726975,606.32,604.69,0.33074798]
[1743472699036,0.28739073,605.87,604.69,0.33074798]
[1743472699237,2.50726975,606.32,604.69,0.33074798]
[1743472699436,0.28739785,605.86,604.69,0.33074798]
[1743472699736,2.50726975,606.32,604.69,0.33074798]
[1743472699935,0.63331467,606.31,604.69,0.33074798]
[1743472700136,0.28741447,605.85,604.69,0.33074798]
[1743472700334,2.50726975,606.29,604.69,0.33074798]
[1743472700530,0.63333481,606.28,604.69,0.33074798]
[1743472700731,0.28741565,605.84,604.69,0.33074798]
[1743472700934,0.32988058,606.28,604.69,0.33074798]
[1743472701133,0.30345469,606.27,604.69,0.33074798]
[1743472701338,0.28742278,605.83,604.69,0.33074798]
[1743472701532,0.32988058,606.28,604.69,0.33074798]
[1743472701735,0.30345496,606.27,604.69,0.33074798]
[1743472702536,0.28742159,606.26,604.69,0.33074798]
[1743472702735,0.30345496,606.25,604.69,0.33074798]
[1743472703135,0.30345496,606.24,604.69,0.33074798]
[1743472703336,0.30345496,606.23,604.69,0.33074798]
[1743472703536,0.30345496,606.25,604.69,0.33074798]
[1743472703743,0.28742159,606.26,604.69,0.33074798]
[1743472703744,0.30345496,606.24,604.69,0.33074798]
[1743472703938,0.30345496,606.25,604.69,0.33074798]
[1743472704142,0.30345496,606.24,604.69,0.33074798]
[1743472704342,0.30345496,606.25,604.69,0.33074798]
[1743472705144,0.28744296,606.24,604.69,0.33074798]
[1743472705540,0.30345496,606.23,604.69,0.33074798]
[1743472708050,0.30343514,606.22,604.69,0.33074798]
[1743472708251,0.30343514,606.23,604.69,0.33074798]
[1743472708447,0.30343514,606.22,604.69,0.33074798]
[1743472708751,0.30343514,606.21,604.69,0.33074798]
[1743472709048,0.28744296,606.24,604.69,0.33074798]
[1743472709249,0.30342399,606.23,604.69,0.33074798]
[1743472709444,0.28744296,606.24,604.69,0.33074798]
[1743472709648,0.3034228,606.23,604.69,0.33074798]
[1743472711050,0.3034228,606.27,604.69,0.33074798]
[1743472711250,0.28744058,606.22,604.69,0.33074798]
[1743472711450,0.3034228,606.21,604.69,0.33074798]
[1743472714054,0.3034228,606.27,604.69,0.33074798]
[1743472714244,0.28743346,606.2,604.69,0.33074798]
[1743472714450,0.3034228,606.19,604.69,0.33074798]
[1743472717249,0.28743108,606.18,604.69,0.33074798]
[1743472719559,1.007,606.17,604.69,0.33074798]
[1743472720257,0.28739667,606.16,604.69,0.33074798]
[1743472722957,1.007,606.17,604.69,0.33074798]
[1743472723157,0.28740735,606.15,604.69,0.33074798]
[1743472725955,1.007,606.17,604.69,0.33074798]
[1743472726161,0.2874204,606.14,604.69,0.33074798]
[1743472728860,1.007,606.17,604.69,0.33074798]
[1743472729362,0.28746551,606.16,604.69,0.33074798]
[1743472731765,1.007,606.17,604.69,0.33074798]
[1743472732563,0.28746076,606.16,604.69,0.33074798]
[1743472734869,1.007,606.17,604.69,0.33074798]
[1743472735071,0.28748926,606.15,604.69,0.33074798]
[1743472737975,1.007,606.17,604.69,0.33074798]
[1743472738170,0.28748807,606.14,604.69,0.33074798]
[1743472743777,0.32988058,606.28,604.69,0.33074798]
[1743472744377,0.28738836,606.27,604.69,0.33074798]
[1743472746986,0.932,606.26,604.69,0.33074798]
[1743472747889,0.28744889,606.25,604.69,0.33074798]
[1743472749887,0.932,606.26,604.69,0.33074798]
[1743472750086,0.28744177,606.24,604.69,0.33074798]
[1743472752787,0.932,606.26,604.69,0.33074798]
[1743472753193,0.2874667,606.25,604.69,0.33074798]
[1743472755791,0.932,606.26,604.69,0.33074798]
[1743472756190,0.28748214,606.24,604.69,0.33074798]
[1743472758795,0.932,606.26,604.69,0.33074798]
[1743472759000,0.30346025,606.25,604.69,0.33074798]
[1743472759300,0.28749045,606.23,604.69,0.33074798]
[1743472759494,0.30346025,606.22,604.69,0.33074798]
[1743472762200,0.59093051,606.21,604.69,0.33074798]
[1743472762500,0.30346025,606.2,604.69,0.33074798]
[1743472764499,0.30345932,606.19,604.69,0.33074798]
[1743472764797,0.30345932,606.18,604.69,0.33074798]
[1743472765004,0.30345932,606.25,604.69,0.33074798]
[1743472765196,0.30345932,606.24,604.69,0.33074798]
[1743472765401,0.28745601,606.17,604.69,0.33074798]
[1743472765602,0.30345932,606.16,604.69,0.33074798]
[1743472766104,0.30345427,606.15,604.69,0.33074798]
[1743472766304,0.30345427,606.16,604.69,0.33074798]
[1743472766505,0.30345427,606.15,604.69,0.33074798]
[1743472766705,0.30345427,606.16,604.69,0.33074798]
[1743472766899,0.28745601,606.17,604.69,0.33074798]
[1743472766900,0.30345427,606.15,604.69,0.33074798]
[1743472767099,0.30345427,606.14,604.69,0.33074798]
[1743472767299,0.30345427,606.13,604.69,0.33074798]